bitfinex/quotes_ETHUSD_20240614
["timestamp","ask_amount","ask_price","bid_price","bid_amount"]
[1718353692976,0.697,3523.6,3522.9,1.705]
[1718353693181,0.03697949,3523.5,3522.9,1.705]
[1718353695707,0.697,3523.6,3522.9,1.705]
[1718353696305,0.03697949,3523.5,3522.9,1.705]
[1718353696507,0.03697949,3523.7,3523.0,0.47058]
[1718353696731,0.03697949,3523.7,3522.4,1.705]
[1718353696732,0.697,3523.3,3522.4,1.705]
[1718353696870,0.697,3523.3,3522.5,3.13844514]
[1718353697799,0.03697949,3523.5,3522.5,3.13844514]
[1718353698003,0.697,3523.4,3522.6,2.33450451]
[1718353698286,0.03697949,3523.3,3522.6,3.76794965]
[1718353702227,0.03697949,3523.3,3522.3,2.4596]
[1718353702228,0.697,3523.2,3522.3,2.4596]
[1718353702433,0.697,3523.0,3522.3,2.4596]
[1718353702592,0.03697949,3522.9,3522.3,2.4596]
[1718353703933,0.03697949,3523.0,3522.3,2.4596]
[1718353708053,0.03697949,3523.0,3522.1,4.25686]
[1718353708217,0.73397949,3523.0,3522.1,4.25686]
[1718353710331,0.697,3522.8,3522.1,4.25686]
[1718353710662,0.03697949,3522.7,3522.1,4.25686]
[1718353712532,0.03697949,3522.7,3522.0,2.2541]
[1718353713361,0.03697949,3522.7,3522.0,2.71971]
[1718353714236,0.03697949,3522.9,3522.0,2.71971]
[1718353717445,2.4705,3522.7,3521.7,1.705]
[1718353717647,0.03697949,3522.6,3521.8,1.43344514]
[1718353718373,0.03697949,3522.6,3521.7,2.402]
[1718353720594,0.03697949,3522.6,3521.7,1.705]
[1718353722103,2.4769,3522.4,3521.3,4.0721]
[1718353722275,2.4769,3522.4,3521.4,1.43344514]
[1718353722276,0.73397949,3522.3,3521.4,1.43344514]
[1718353722612,0.03697949,3522.2,3521.4,1.43344514]
[1718353725568,2.3176,3522.1,3521.1,1.705]
[1718353725768,0.03697949,3522.0,3521.2,3.83544514]
[1718353726081,0.03697949,3522.0,3521.3,0.61159451]
[1718353726278,0.03697949,3522.0,3521.4,0.697]
[1718353727501,0.03697949,3522.0,3521.4,0.75378918]
[1718353727773,0.697,3522.6,3521.6,0.697]
[1718353727917,2.41457949,3522.5,3521.6,0.697]
[1718353728431,0.31115795,3522.4,3521.6,0.697]
[1718353728637,0.03697949,3522.3,3521.6,0.697]
[1718353730620,2.3776,3522.5,3521.6,2.13044514]
[1718353730805,3.0,3523.1,3521.3,0.61159451]
[1718353730806,2.394,3522.9,3522.1,0.697]
[1718353731399,2.394,3522.9,3522.1,1.04353423]
[1718353731617,0.03697949,3522.8,3522.1,1.04353423]
[1718353732695,2.2549,3523.1,3522.3,0.697]
[1718353733013,2.2549,3523.4,3522.5,0.697]
[1718353733223,2.2549,3523.7,3522.7,0.697]
[1718353733431,0.03697949,3523.6,3522.7,1.30859451]
[1718353733605,0.03697949,3523.6,3522.9,0.697]
[1718353734360,0.03697949,3523.6,3522.7,3.75003965]
[1718353734361,0.03697949,3523.6,3522.7,4.44703965]
[1718353734939,0.73397949,3523.6,3522.7,4.44703965]
[1718353735137,0.03697949,3523.6,3522.7,4.44703965]
[1718353735341,0.03697949,3523.6,3522.8,0.34653423]
[1718353735544,0.03697949,3523.6,3522.9,0.697]
[1718353736041,0.03697949,3523.6,3522.8,0.34653423]
[1718353737066,0.697,3523.3,3522.4,2.4107]
[1718353737205,0.03697949,3523.2,3522.5,1.43344514]
[1718353737406,0.697,3523.3,3522.5,1.43344514]
[1718353737627,0.697,3523.5,3522.5,1.43344514]
[1718353737845,0.03697949,3523.4,3522.5,1.43344514]
[1718353738031,0.03697949,3523.4,3522.5,3.13844514]
[1718353738820,0.03697949,3523.4,3522.6,0.697]
[1718353739510,0.03697949,3523.6,3522.6,0.697]
[1718353739747,0.03697949,3523.6,3522.8,0.697]
[1718353740050,0.03697949,3523.6,3522.9,0.38354451]
[1718353743024,0.03697949,3523.6,3523.0,2.2769]
[1718353744670,2.4766,3524.2,3523.0,2.2769]
[1718353744818,0.697,3524.0,3523.0,2.2769]
[1718353745164,0.03697949,3523.9,3523.0,2.2769]
[1718353745520,0.35803744,3523.9,3523.0,2.2769]
[1718353745727,1.05503744,3523.9,3523.0,2.2769]
[1718353747258,0.73397949,3523.9,3523.0,2.2769]
[1718353747561,0.03697949,3523.8,3523.0,2.2769]
[1718353748357,0.03697949,3523.8,3523.0,2.9739]
[1718353748558,0.697,3524.0,3523.0,2.9739]
[1718353748731,0.03697949,3523.9,3523.0,2.9739]
[1718353752451,0.03697949,3523.9,3523.1,1.4902085]
[1718353752653,2.4766,3524.2,3523.5,2.3622]
[1718353755563,2.4718,3524.5,3523.6,0.75375764]
[1718353755775,0.03697949,3524.4,3523.6,0.75375764]
[1718353755935,0.03697949,3524.4,3523.6,1.2358534]
[1718353756135,0.03697949,3524.4,3523.6,1.17909576]
[1718353757939,0.03697949,3524.4,3523.6,0.48209576]
[1718353758133,0.697,3524.3,3523.5,2.3622]
[1718353758339,0.03697949,3524.2,3523.5,2.3622]
[1718353759235,0.03697949,3524.4,3523.5,2.3622]
[1718353759683,0.03697949,3524.4,3523.3,0.697]
[1718353759849,0.03697949,3524.4,3523.4,0.697]
[1718353759850,0.697,3524.3,3523.4,0.697]
[1718353760036,0.03697949,3524.2,3523.4,1.31935451]
[1718353760835,3.1688,3524.5,3523.4,1.31935451]
[1718353761969,0.03697949,3524.4,3523.4,1.31935451]
[1718353766777,0.697,3524.3,3523.4,1.31935451]
[1718353766976,2.31187949,3524.2,3523.4,0.62235451]
[1718353767186,2.31187949,3524.2,3523.2,2.402]
[1718353768643,2.31187949,3524.2,3523.2,1.705]
[1718353768863,2.31187949,3524.2,3523.2,2.402]
[1718353769286,0.697,3524.1,3523.2,1.705]
[1718353769457,0.697,3523.9,3522.8,9.65886]
[1718353769664,0.03697949,3523.8,3522.9,4.43344514]
[1718353775888,2.2888,3523.7,3522.9,4.43344514]
[1718353776118,0.03697949,3523.6,3522.7,2.2589]
[1718353776251,0.697,3523.5,3522.7,3.0]
[1718353776547,0.03697949,3523.4,3522.6,5.402]
[1718353776750,2.277,3523.3,3522.6,5.402]
[1718353776992,0.03697949,3523.2,3522.6,5.402]
[1718353777149,0.03697949,3523.2,3522.6,4.705]
[1718353777356,0.03697949,3523.2,3522.5,4.25686]
[1718353777357,0.697,3523.0,3522.5,4.25686]
[1718353777668,0.03697949,3522.9,3522.5,4.25686]
[1718353778087,2.3723,3522.8,3522.5,4.25686]
[1718353778290,2.3723,3522.8,3522.1,4.0493]
[1718353778513,2.3723,3522.8,3522.2,1.43344514]
[1718353778814,2.3723,3522.8,3522.2,4.43344514]
[1718353779957,0.697,3523.3,3522.3,0.697]
[1718353780188,2.32377949,3523.2,3522.3,0.697]
[1718353785597,3.02077949,3523.2,3522.3,0.697]
[1718353788909,2.32377949,3523.2,3522.3,0.697]
[1718353792181,3.02077949,3523.2,3522.3,0.697]
[1718353792803,3.02077949,3523.2,3522.2,3.0]
[1718353793307,2.2526,3523.1,3522.2,3.0]
[1718353793505,0.03697949,3523.0,3522.2,3.0]
[1718353795085,0.03697949,3523.0,3522.1,3.697]
[1718353795722,0.73397949,3523.0,3522.1,3.0]
[1718353796523,0.73397949,3523.0,3522.0,4.95386]
[1718353796524,0.697,3522.8,3522.0,4.25686]
[1718353796735,0.03697949,3522.7,3522.0,4.25686]
[1718353796897,3.1133,3522.6,3522.0,4.25686]
[1718353797102,0.03697949,3522.5,3522.0,4.25686]
[1718353800290,0.73397949,3522.5,3522.0,4.25686]
[1718353800496,0.73397949,3522.5,3521.4,1.705]
[1718353800497,2.3637,3522.4,3521.4,1.705]
[1718353800695,2.3637,3522.1,3521.4,1.705]
[1718353800890,0.03697949,3522.0,3521.4,1.705]
[1718353802718,0.697,3522.5,3521.5,0.05678754]
[1718353802917,2.3681,3522.3,3521.5,0.05678754]
[1718353803123,0.03697949,3522.2,3521.6,0.697]
[1718353803448,2.3681,3522.3,3521.6,0.697]
[1718353806938,4.43344514,3523.0,3521.8,0.697]
[1718353806939,2.3027,3522.9,3521.8,0.697]
[1718353807147,0.73397949,3522.8,3521.8,3.0361]
[1718353807299,0.03697949,3522.7,3521.8,3.34538875]
[1718353808197,2.4742,3522.6,3521.8,0.697]
[1718353808397,0.03697949,3522.5,3521.6,3.0944]
[1718353808830,2.4742,3522.4,3521.5,0.697]
[1718353809037,0.03697949,3522.3,3521.5,0.697]
[1718353810610,0.03697949,3522.3,3521.4,1.705]
[1718353810818,0.03697949,3522.3,3521.4,2.402]
[1718353812032,0.03697949,3522.3,3521.6,0.697]
[1718353812537,1.09117949,3522.4,3521.6,0.697]
[1718353812947,1.09117949,3522.4,3521.7,2.4222]
[1718353813450,0.697,3522.9,3521.8,2.18722871]
[1718353813653,0.697,3522.9,3521.9,0.63144287]
[1718353813852,0.697,3522.9,3521.9,0.68822354]
[1718353814049,0.697,3522.9,3521.9,0.63144287]
[1718353814552,0.697,3522.9,3521.9,0.68822357]
[1718353814751,0.697,3522.9,3522.0,3.1802]
[1718353814965,0.697,3522.9,3522.1,0.32668587]
[1718353815551,3.0202,3522.9,3522.1,0.32668587]
[1718353816257,2.3232,3522.9,3522.1,0.32668587]
[1718353818347,3.0202,3522.9,3522.1,0.32668587]
[1718353819966,2.27289905,3523.3,3522.1,0.32668587]
[1718353819967,2.3619,3523.2,3522.1,0.38346653]
[1718353820136,2.3619,3523.2,3522.2,0.52686665]
[1718353820137,0.697,3523.1,3522.2,0.52686665]
[1718353820849,0.697,3522.9,3522.2,0.52686665]
[1718353821459,2.3619,3523.2,3522.2,0.52686665]
[1718353821671,3.0589,3523.2,3522.2,0.52686665]
[1718353821963,3.0589,3523.2,3522.3,0.43126209]
[1718353822125,0.697,3523.4,3522.4,3.85594514]
[1718353822479,1.78200587,3524.0,3523.1,0.697]
[1718353822681,1.78200587,3524.2,3523.2,0.47189]
[1718353822988,2.9573,3524.1,3523.2,0.47189]
[1718353823640,0.697,3523.9,3523.2,0.47189]
[1718353825701,2.2603,3524.1,3523.2,0.47189]
[1718353826099,0.697,3524.0,3523.2,0.47189]
[1718353826289,0.697,3524.0,3523.3,0.449379]
[1718353826597,2.4942,3524.4,3523.3,1.146379]
[1718353826798,2.4942,3524.4,3523.5,0.697]
[1718353826999,3.1146,3524.7,3523.7,0.697]
[1718353827201,2.4176,3524.7,3523.7,0.697]
[1718353827498,0.50274535,3524.6,3523.7,0.697]
[1718353827665,1.19974535,3524.6,3523.5,0.7537544]
[1718353827865,0.50274535,3524.6,3523.5,3.89219954]
[1718353828106,1.19974535,3524.6,3523.5,3.89219954]
[1718353828402,0.50274535,3524.6,3523.5,3.89219954]
[1718353828605,0.37462467,3524.5,3523.5,3.89219954]
[1718353829817,0.697,3524.7,3523.7,0.697]
[1718353830018,0.82590135,3524.8,3524.1,0.697]
[1718353830317,0.82590135,3524.8,3523.8,3.88609342]
[1718353830318,0.697,3524.9,3523.8,3.82934514]
[1718353830601,0.697,3524.9,3523.9,0.697]
[1718353830808,0.697,3524.9,3523.9,0.75374825]
[1718353831995,3.0,3525.4,3524.3,0.697]
[1718353832197,0.697,3525.3,3524.1,1.705]
[1718353832397,0.697,3525.3,3524.2,0.697]
[1718353832603,3.24944,3525.4,3524.2,0.697]
[1718353832813,0.697,3525.2,3524.2,0.697]
[1718353833326,0.697,3525.2,3524.1,3.13844514]
[1718353833529,0.394644,3525.1,3524.1,1.43344514]
[1718353833689,0.697,3525.0,3524.0,3.0071]
[1718353834021,0.697,3525.0,3524.0,2.3101]
[1718353834923,0.394644,3525.1,3524.1,2.18719368]
[1718353835124,0.394644,3525.1,3524.1,2.13044514]
[1718353835685,0.394644,3525.1,3524.2,0.05674374]
[1718353836008,0.394644,3525.1,3524.1,2.13044514]
[1718353836737,3.24944,3525.4,3524.3,2.4371]
[1718353836925,3.24944,3525.4,3524.3,3.1341]
[1718353837227,0.697,3525.3,3524.3,3.1341]
[1718353838020,0.697,3525.1,3524.3,2.4371]
[1718353846961,2.3942,3525.0,3524.3,2.4371]
[1718353847127,0.30912,3524.9,3524.3,2.4371]
[1718353849786,1.00612,3524.9,3524.3,2.4371]
[1718353850766,1.00612,3524.9,3524.0,0.697]
[1718353850964,0.697,3524.7,3523.9,2.2566]
[1718353851758,0.30912,3524.9,3523.9,2.2566]
[1718353851759,0.697,3524.5,3523.9,2.2566]
[1718353852594,0.697,3524.3,3523.8,7.44]
[1718353854053,2.4417,3524.5,3523.8,7.44]
[1718353854264,0.697,3524.4,3523.8,7.44]
[1718353854472,0.697,3524.6,3523.8,7.44]
[1718353854992,1.01179,3524.6,3523.8,7.44]
[1718353855190,0.697,3524.6,3523.8,7.44]
[1718353855395,3.0,3525.1,3523.9,2.37505031]
[1718353855640,0.697,3525.0,3524.1,2.3183]
[1718353855979,0.697,3524.8,3524.1,2.3183]
[1718353856282,3.49070329,3525.1,3524.1,2.3183]
[1718353856283,3.0,3525.1,3524.1,2.3183]
[1718353856485,0.697,3524.8,3524.1,2.3183]
[1718353857386,3.0,3525.1,3524.1,2.3183]
[1718353857600,0.697,3525.0,3524.1,2.3183]
[1718353859085,0.697,3524.8,3524.1,2.3183]
[1718353860764,0.697,3524.6,3523.8,9.8874]
[1718353860975,0.697,3524.2,3523.8,9.8874]
[1718353861176,0.697,3524.2,3523.8,7.44]
[1718353861466,0.697,3524.5,3523.8,7.44]
[1718353862268,0.697,3524.5,3523.5,3.1444]
[1718353862605,2.3612,3524.9,3523.7,3.1392]
[1718353862804,2.3612,3524.9,3523.8,2.4422]
[1718353862805,0.697,3524.8,3523.8,2.4422]
[1718353864034,0.697,3524.6,3523.8,2.4422]
[1718353864838,0.697,3524.4,3523.8,2.4422]
[1718353865062,2.3612,3524.9,3523.8,2.4422]
[1718353865063,0.697,3524.2,3523.8,2.4422]
[1718353866169,2.2825,3523.8,3522.9,7.44]
[1718353866467,0.697,3523.1,3522.7,2.3989]
[1718353867562,0.697,3523.2,3522.7,2.3989]
[1718353869066,0.29795,3523.7,3522.7,2.3989]
[1718353872852,3.0,3524.1,3522.8,1.43344514]
[1718353873169,2.3012,3524.2,3522.8,1.43344514]
[1718353873170,3.0,3524.0,3522.8,1.43344514]
[1718353873323,5.3012,3524.2,3522.8,1.43344514]
[1718353873527,2.3012,3524.2,3522.8,1.43344514]
[1718353873727,4.085,3524.0,3522.4,7.44]
[1718353873954,4.085,3524.0,3522.5,0.05677261]
[1718353874141,4.085,3524.0,3522.6,2.47256931]
[1718353874747,4.085,3524.0,3522.6,2.4158]
[1718353875152,4.085,3524.0,3522.7,0.05676926]
[1718353875469,0.67429389,3523.9,3522.6,2.4158]
[1718353876749,0.67429389,3523.9,3522.7,0.05676767]
[1718353878074,0.67429389,3523.9,3522.7,0.05676765]
[1718353879739,0.67429389,3523.9,3522.6,2.4158]
[1718353881670,2.10773903,3523.9,3522.6,2.4158]
[1718353881854,1.672,3523.6,3522.6,2.4158]
[1718353883307,2.4231,3523.5,3522.1,9.8672]
[1718353883594,2.4231,3523.5,3522.2,3.0]
[1718353883750,2.4231,3523.5,3522.1,5.4272]
[1718353883949,0.85165451,3523.4,3522.1,2.4272]
[1718353884201,1.672,3523.2,3522.1,2.4272]
[1718353886375,1.672,3523.2,3521.8,2.4283]
[1718353886558,1.672,3523.2,3521.8,3.86174514]
[1718353886766,2.2723,3523.1,3521.8,3.86174514]
[1718353886950,2.80098987,3523.1,3521.8,3.86174514]
[1718353887378,2.80098987,3523.1,3521.8,2.4283]
[1718353889760,2.80098987,3523.1,3521.7,4.704]
[1718353890264,2.80098987,3523.1,3521.6,7.44]
[1718353891100,4.47298987,3523.1,3521.6,7.44]
[1718353893462,2.4011,3523.0,3521.6,7.44]
[1718353894596,2.4011,3523.0,3521.5,1.704]
[1718353894812,2.4011,3523.0,3521.5,6.13744514]
[1718353895731,2.4011,3523.0,3521.5,4.704]
[1718353896275,2.4011,3523.0,3521.5,1.704]
[1718353896579,2.3951,3522.8,3521.5,1.704]
[1718353898882,0.697,3522.3,3521.5,1.704]
[1718353899985,3.1049,3522.3,3521.5,1.704]
[1718353901135,3.1049,3522.3,3521.4,2.2933]
[1718353901457,3.1049,3522.3,3521.4,3.72674514]
[1718353902943,3.1049,3522.3,3521.4,2.2933]
[1718353908253,3.1049,3522.3,3521.5,0.05678809]
[1718353908461,3.1049,3522.3,3521.4,2.2933]
[1718353909089,2.3292,3522.8,3521.8,0.697]
[1718353909224,2.3292,3522.8,3521.9,2.74768018]
[1718353909426,3.0262,3522.8,3521.9,2.74768018]
[1718353910945,3.0262,3522.8,3521.9,2.6909]
[1718353911140,2.3292,3522.8,3521.9,2.6909]
[1718353911332,0.697,3522.7,3522.0,0.05678016]
[1718353911537,2.3292,3522.8,3522.1,0.27476802]
[1718353911826,3.0262,3522.8,3522.1,0.27476802]
[1718353912721,2.3292,3522.8,3522.1,0.27476802]
[1718353917137,0.697,3522.7,3522.1,0.27476802]
[1718353920587,2.3719,3523.1,3522.3,1.704]
[1718353920812,2.3719,3523.1,3522.4,4.04874426]
[1718353921075,2.3719,3523.1,3522.4,1.78034426]
[1718353921289,2.254,3523.6,3522.7,2.2684]
[1718353921436,2.254,3523.6,3522.8,0.3932261]
[1718353922440,2.4763,3523.9,3522.9,1.43344514]
[1718353922645,3.1733,3523.9,3523.0,1.704]
[1718353922962,3.1733,3523.9,3523.1,0.41709067]
[1718353924187,0.697,3523.7,3523.1,0.41709067]
[1718353924395,0.697,3523.7,3522.3,2.3991]
[1718353924600,0.697,3523.5,3522.5,0.697]
[1718353925204,0.697,3523.5,3522.4,10.57744514]
[1718353925415,0.697,3523.5,3522.4,11.27444514]
[1718353925784,2.4763,3523.9,3522.5,3.13744514]
[1718353926094,0.697,3523.6,3522.6,0.697]
[1718353927639,0.697,3523.6,3522.7,0.0567672]
[1718353928055,0.697,3523.6,3522.6,0.697]
[1718353929728,2.4039,3523.5,3522.6,0.697]
[1718353930433,0.697,3523.2,3522.1,7.44]
[1718353930634,0.697,3523.0,3522.2,3.0]
[1718353930939,0.697,3523.0,3521.9,2.9619]
[1718353931234,0.697,3523.0,3522.0,1.43344514]
[1718353931430,0.697,3523.0,3522.0,3.13744514]
[1718353935017,0.697,3522.8,3521.8,1.704]
[1718353935217,0.697,3522.8,3521.7,3.697]
[1718353935390,2.3626,3522.5,3521.7,3.0]
[1718353935596,0.697,3522.4,3521.7,3.0]
[1718353936095,0.697,3522.4,3521.5,4.704]
[1718353936396,0.697,3522.2,3521.2,7.44]
[1718353936594,2.4998,3521.9,3521.3,1.43344514]
[1718353938062,2.4998,3521.9,3520.9,0.44430984]
[1718353938063,0.697,3521.5,3520.9,0.44430984]
[1718353938578,0.697,3521.5,3520.7,1.704]
[1718353938784,0.697,3521.5,3520.7,3.13744514]
[1718353940477,0.697,3521.7,3520.7,3.13744514]
[1718353940976,0.24998,3521.8,3520.7,3.13744514]
[1718353941141,0.24998,3521.8,3520.8,0.31374451]
[1718353944373,0.24998,3521.8,3520.7,3.13744514]
[1718353947055,0.24998,3521.8,3520.4,10.44]
[1718353947056,2.2921,3521.7,3520.5,1.704]
[1718353947251,2.2921,3521.7,3520.5,6.13744514]
[1718353948680,2.2921,3521.7,3520.7,1.704]
[1718353948989,2.2921,3521.7,3520.8,3.19423942]
[1718353949596,2.2921,3521.7,3520.8,3.13744514]
[1718353949779,2.2921,3521.7,3520.9,0.31374451]
[1718353949956,2.2921,3521.7,3520.9,1.74718965]
[1718353950292,2.2921,3521.7,3521.0,0.05679432]
[1718353950502,2.2921,3521.7,3520.9,1.74718965]
[1718353950988,2.2921,3521.7,3521.0,0.05679428]
[1718353951194,2.2921,3521.7,3521.1,0.18039839]
[1718353954194,2.2921,3521.7,3520.5,3.0]
[1718353954195,2.988,3520.9,3519.7,7.44]
[1718353954402,3.10644514,3521.2,3518.8,2.3926]
[1718353954403,1.673,3520.5,3518.8,2.3926]
[1718353954607,4.115,3520.7,3518.8,2.3926]
[1718353954900,0.53958478,3520.6,3518.9,1.67270514]
[1718353955106,0.53958478,3520.6,3519.0,1.704]
[1718353955259,0.53958478,3520.6,3519.1,3.13744514]
[1718353955590,0.53958478,3520.6,3519.2,3.0]
[1718353955896,0.60880299,3520.5,3519.3,0.61374451]
[1718353956263,2.442,3520.7,3519.4,1.43344514]
[1718353958940,2.442,3520.7,3519.5,0.05681774]
[1718353959380,2.442,3520.7,3519.4,1.43344514]
[1718353960416,2.442,3520.7,3519.4,3.13744514]
[1718353960586,4.673,3521.3,3519.6,1.704]
[1718353960776,2.3954,3521.2,3519.8,1.704]
[1718353960973,5.3954,3521.2,3519.9,3.13744514]
[1718353961171,2.3954,3521.2,3519.9,3.13744514]
[1718353961409,2.7737,3521.6,3520.1,2.4114]
[1718353961610,2.7737,3521.6,3520.2,3.13744514]
[1718353962972,3.0,3521.5,3520.2,3.13744514]
[1718353968118,2.7737,3521.6,3520.2,3.13744514]
[1718353968481,2.4737,3521.6,3520.2,3.13744514]
[1718353968599,5.4737,3521.6,3520.2,3.13744514]
[1718353970188,2.4737,3521.6,3520.3,0.05680155]
[1718353970389,2.2858,3522.0,3520.5,1.704]
[1718353970587,2.2858,3522.0,3520.6,3.49424318]
[1718353970588,2.5858,3522.0,3520.6,3.49424318]
[1718353970989,2.5858,3522.0,3520.6,3.43744514]
[1718353971597,3.0,3521.9,3520.6,3.43744514]
[1718353973907,3.0,3521.9,3520.7,0.05679803]
[1718353974104,3.72588,3521.9,3520.7,0.34438423]
[1718353974902,3.72588,3521.9,3520.8,2.4534]
[1718353976636,2.5858,3522.0,3520.8,5.59084514]
[1718353977527,2.2858,3522.0,3520.8,5.59084514]
[1718353977724,3.0,3522.0,3520.8,5.59084514]
[1718353978240,1.673,3522.1,3520.8,5.59084514]
[1718353980480,3.0,3522.2,3520.8,5.59084514]
[1718353982629,3.49107494,3522.2,3520.8,5.59084514]
[1718353982868,3.49107494,3522.2,3520.9,0.31374451]
[1718353983235,3.49107494,3522.2,3521.0,3.19423989]
[1718353983435,3.0,3522.2,3521.1,2.3715]
[1718353983661,2.4181,3522.6,3521.2,0.05679105]
[1718353983890,6.13611987,3522.6,3521.3,0.3]
[1718353984070,6.13611987,3522.6,3521.3,0.35679105]
[1718353984470,6.13611987,3522.6,3521.4,2.4889]
[1718353988497,3.71801987,3522.6,3521.4,2.4889]
[1718353988698,0.71801987,3522.6,3521.4,2.4889]
[1718353988914,0.697,3522.1,3521.5,0.27889]
[1718354011168,0.697,3522.1,3521.4,2.4889]
[1718354011367,2.4299,3522.3,3521.4,2.4889]
[1718354011368,0.697,3521.9,3521.4,2.4889]
[1718354012649,2.4299,3522.3,3520.9,2.4479]
[1718354012852,0.697,3521.5,3520.9,2.4479]
[1718354015708,0.697,3521.0,3520.5,2.2586]
[1718354016897,1.78290225,3521.5,3520.5,2.2586]
[1718354017180,0.697,3521.2,3520.5,2.2586]
[1718354018094,0.697,3521.0,3520.5,2.2586]
[1718354018275,0.697,3520.8,3520.5,2.2586]
[1718354018478,0.697,3520.8,3520.1,2.3702]
[1718354021465,0.697,3520.8,3519.6,2.4053]
[1718354021663,0.697,3520.6,3519.7,0.41093]
[1718354022399,0.697,3520.6,3519.6,2.4053]
[1718354022400,0.697,3520.4,3519.6,2.4053]
[1718354023970,0.697,3520.5,3519.6,2.4053]
[1718354024558,2.3405,3521.0,3519.6,2.4053]
[1718354024888,0.697,3520.5,3519.6,2.4053]
[1718354029609,0.697,3520.3,3519.6,2.4053]
[1718354030490,0.67619451,3520.9,3519.6,2.4053]
[1718354030667,0.697,3520.3,3519.6,2.4053]
[1718354032391,0.67619451,3520.9,3519.6,2.4053]
[1718354032598,0.697,3520.4,3519.6,2.4053]
[1718354032794,0.697,3520.4,3519.7,0.48063]
[1718354035111,0.697,3520.6,3519.7,0.48063]
[1718354035309,0.697,3520.6,3519.6,3.1023]
[1718354035519,0.697,3520.4,3519.6,2.4053]
[1718354039719,0.67619451,3520.9,3519.7,0.05681618]
[1718354039720,0.697,3520.6,3519.7,0.05681618]
[1718354039881,0.697,3520.6,3519.8,2.4932]
[1718354040082,0.697,3520.6,3519.8,2.81790162]
[1718354042699,2.87021366,3521.2,3519.9,2.361]
[1718354042899,0.49118018,3521.5,3520.2,2.401]
[1718354043097,0.697,3521.5,3520.5,2.4158]
[1718354043290,3.81244514,3522.1,3520.5,2.4158]
[1718354043291,0.697,3521.3,3520.5,2.4158]
[1718354043822,0.697,3521.1,3520.5,2.4158]
[1718354044121,0.697,3521.1,3518.9,0.87882566]
[1718354044122,2.3766,3521.3,3519.5,0.697]
[1718354044322,0.697,3520.6,3519.7,2.4383]
[1718354044489,0.53646,3521.2,3519.7,2.4383]
[1718354044490,2.3299,3521.1,3519.7,2.4383]
[1718354046035,5.3299,3521.1,3519.7,2.4383]
[1718354046207,5.82108018,3521.1,3519.7,2.4383]
[1718354046535,5.3299,3521.1,3519.7,2.4383]
[1718354046712,1.07789853,3521.0,3519.7,2.4383]
[1718354046913,4.07789853,3521.0,3519.7,2.4383]
[1718354049795,3.97789853,3521.0,3519.7,2.4383]
[1718354050487,5.41134367,3521.0,3519.7,2.4383]
[1718354050745,5.9025938,3521.0,3519.7,2.4383]
[1718354050946,1.35337152,3520.9,3519.7,2.4383]
[1718354051363,2.2715,3520.8,3519.7,2.4383]
[1718354054851,8.48417324,3520.8,3519.7,2.4383]
[1718354055005,8.48417324,3520.8,3519.1,4.704]
[1718354055006,6.69192337,3520.7,3519.1,3.0]
[1718354055212,3.96126676,3520.6,3519.3,2.4478]
[1718354055411,1.43344514,3520.5,3519.3,2.4478]
[1718354055606,1.92477173,3520.5,3519.3,2.4478]
[1718354057237,3.704359,3520.5,3519.3,2.4478]
[1718354057547,1.18740385,3520.4,3519.3,2.4478]
[1718354058255,2.96699112,3520.4,3519.3,2.4478]
[1718354058752,1.18740385,3520.4,3519.3,2.4478]
[1718354059257,2.96699112,3520.4,3519.3,2.4478]
[1718354059637,1.18740385,3520.4,3519.3,2.4478]
[1718354059959,1.18740385,3520.4,3519.4,0.24478]
[1718354060325,2.96699112,3520.4,3519.4,0.24478]
[1718354061449,2.96699112,3520.4,3519.3,2.4478]
[1718354061751,2.4678,3520.3,3519.3,2.4478]
[1718354062757,4.24738727,3520.3,3519.3,2.4478]
[1718354063774,5.68083241,3520.3,3519.3,2.4478]
[1718354064165,1.77958727,3520.2,3519.3,2.4478]
[1718354064393,0.73595549,3520.1,3519.3,2.4478]
[1718354064744,0.73595549,3520.1,3518.7,7.44]
[1718354065057,0.73595549,3520.1,3518.8,2.4623]
[1718354067995,1.77958727,3520.2,3518.8,2.4623]
[1718354069482,1.77958727,3520.2,3518.9,1.704]
[1718354069799,4.24738727,3520.3,3519.0,2.3183]
[1718354070030,1.18740385,3520.4,3518.7,7.44]
[1718354070031,1.77958727,3520.4,3519.2,2.3183]
[1718354070213,3.0,3520.6,3519.4,2.3183]
[1718354070500,3.0,3520.6,3519.3,0.60807531]
[1718354070501,3.0,3520.6,3519.6,2.3183]
[1718354070684,1.77958727,3520.9,3519.7,1.43344514]
[1718354070994,5.381,3521.4,3519.8,2.4756]
[1718354070995,1.77958727,3521.0,3519.8,2.4756]
[1718354071201,2.294,3520.9,3519.8,2.4756]
[1718354071401,4.07358727,3520.9,3519.9,0.50687181]
[1718354071702,4.77958727,3520.8,3519.9,0.50687181]
[1718354072669,3.0,3520.8,3519.9,0.50687181]
[1718354072864,1.77958727,3521.1,3520.0,2.55561233]
[1718354073210,4.15368727,3521.2,3520.1,0.30624841]
[1718354073800,1.77958727,3521.1,3520.1,0.30624841]
[1718354075233,4.15368727,3521.2,3520.1,0.30624841]
[1718354077239,1.77958727,3521.1,3520.1,0.30624841]
[1718354078637,1.77958727,3521.1,3520.0,2.4988]
[1718354078840,1.77958727,3521.0,3520.0,2.4988]
[1718354079505,1.77958727,3520.9,3520.0,2.4988]
[1718354080849,6.04633241,3520.8,3519.6,2.4217]
[1718354081420,1.77958727,3520.7,3519.6,2.4217]